fUSD/lending_fUSD_20260412
["ID","MTS","AMOUNT","RATE_DAILY","PERIOD"]
[420323650,1775967032576,-25313.0771581,0.00013598,2]
[420323651,1775967032587,-3641.1362233,0.00013598,2]
[420323652,1775967032607,-151.0,0.00013598,2]
[420323653,1775967032619,-151.0,0.00013598,2]
[420323654,1775967032631,-2212.2666649,0.00013598,2]
[420323655,1775967032653,-15261.6795369,0.00013598,2]
[420323656,1775967032663,-500.0,0.00013698,2]
[420323657,1775967032675,-500.0,0.00013698,2]
[420323658,1775967032689,-607.53665363,0.00013698,2]
[420323659,1775967032702,-622.52,0.00013698,2]
[420323660,1775967032715,-622.52,0.00013698,2]
[420323661,1775967032724,-622.52,0.00013698,2]
[420323663,1775967032744,-150.0,0.00013699,2]
[420323664,1775967032754,-166.66,0.00013699,2]
[420323665,1775967032771,-200.0,0.00013741,2]
[420323666,1775967032781,-166.66,0.00013836,2]
[420323667,1775967032795,-200.0,0.000139,5]
[420323668,1775967032805,-150.0,0.00013973,2]
[420323669,1775967032814,-166.66,0.00013973,2]
[420323670,1775967032823,-166.66,0.0001411,2]
[420323671,1775967032835,-158.33,0.00014112,2]
[420323672,1775967032861,-166.66,0.00014247,2]
[420323673,1775967032870,-150.0,0.00014247,2]
[420323674,1775967032881,-500.0,0.00014247,2]
[420323675,1775967032895,-806.67,0.00014258,2]
[420323676,1775967032905,-276.76578826,0.0001432,2]
[420323677,1775967032928,-166.66,0.00014384,2]
[420323678,1775967032938,-444.92426112,0.0001439,2]
[420323679,1775967032947,-150.0,0.000144,2]
[420323680,1775967032966,-150.0,0.000144,2]
[420323681,1775967032976,-150.0,0.000144,2]
[420323682,1775967032985,-150.0,0.000144,2]
[420323683,1775967033006,-150.0,0.000144,2]
[420323684,1775967033019,-150.0,0.000144,2]
[420323685,1775967033029,-150.0,0.000144,2]
[420323686,1775967033038,-150.0,0.000144,2]
[420323687,1775967033055,-150.0,0.000144,2]
[420323688,1775967033064,-150.0,0.000144,2]
[420323689,1775967033074,-150.0,0.000144,2]
[420323690,1775967033083,-6839.08416733,0.00014414,2]
[420323691,1775967033099,-168.65,0.00014426,2]
[420323692,1775967033110,-500.0,0.00014438,2]
[420323693,1775967033120,-439.02,0.00014459,2]
[420323694,1775967033129,-500.0,0.00014488,2]
[420323695,1775967033145,-500.0,0.00014488,2]
[420323696,1775967033159,-43.45727866,0.00014488,2]
[420323703,1775967037679,-189.92679282,0.00014488,2]
[420323704,1775967037691,-151.0,0.00014488,2]
[420323705,1775967037710,-456.54272134,0.00014488,2]
[420323706,1775967037722,-433.26016796,0.00014488,2]
[420323707,1775967037812,-66.73983204,0.00014488,2]
[420323708,1775967037827,-379.53003848,0.00014488,2]
[420323709,1775967037975,-30.64127291,0.00014488,2]
[420323710,1775967037987,-500.0,0.00014488,2]
[420323711,1775967037998,-500.0,0.00014488,2]
[420323712,1775967038008,-620.0602502,0.00014488,2]
[420323713,1775967038022,-594.80578282,0.00014488,2]
[420323714,1775967038034,-594.80578282,0.00014488,2]
[420323715,1775967038044,-500.0,0.00014489,2]
[420323716,1775967038055,-500.43266432,0.00014489,2]
[420323717,1775967038072,-500.0,0.00014489,2]
[420323718,1775967038082,-614.88,0.00014489,2]
[420323719,1775967038098,-500.0,0.00014489,2]
[420323720,1775967038108,-500.0,0.00014489,2]
[420323721,1775967038119,-500.0,0.00014489,2]
[420323722,1775967038135,-500.0,0.00014489,2]
[420323723,1775967038148,-62191.50068294,0.00014489,2]
[420323724,1775967038271,-4430.59999998,0.00014489,2]
[420323725,1775967038299,-7168.0,0.00014489,2]
[420323726,1775967038712,-265.78000123,0.00014489,2]
[420323786,1775967039863,-151.0,0.00014489,2]
[420323788,1775967039875,-546.32749133,0.00014489,2]
[420323790,1775967039900,-1386.70499995,0.00014489,2]
[420323793,1775967039935,-3389.05691359,0.00014489,2]
[420323795,1775967039952,-277.1987,0.00014489,2]
[420323799,1775967039983,-2217.0,0.00014489,2]
[420323807,1775967040104,-636.3273543,0.00014489,2]
[420323809,1775967040121,-2878.09324054,0.00014489,2]
[420323844,1775967042711,-223.41780015,0.00014489,2]
[420323845,1775967042727,-40825.78999545,0.00014489,2]
[420323846,1775967042745,-5038.18168835,0.00014489,2]
[420323847,1775967042755,-931.86771549,0.00014489,2]
[420323848,1775967042768,-8581.37166932,0.00014489,2]
[420323849,1775967042840,-4362.25192,0.00014489,2]
[420323850,1775967042851,-839.83780068,0.00014489,2]
[420323851,1775967042885,-38264.18220946,0.00014489,2]
[420323855,1775967045543,-161.16,0.00014203,2]
[420323856,1775967045554,-2704.24,0.00014489,2]
[420323857,1775967045635,-20592.60526196,0.00014489,2]
[420323858,1775967045962,-494.5,0.00014489,2]
[420323861,1775967046185,-75779.96735666,0.00014489,2]
[420323864,1775967046221,-41326.6846784,0.00014489,2]
[420323867,1775967046245,-106333.328639,0.00014489,2]
[420323870,1775967856219,500.0,0.0003013,120]
[420323872,1775968231741,-250.0,0.00013,2]
[420323873,1775968231757,-200.0,0.00013642,2]
[420323874,1775968231766,-90.40776292,0.00013643,2]
[420323875,1775968231781,-323.3292545,0.00013643,2]
[420323876,1775968231801,-2800.96661148,0.00013643,2]
[420323877,1775968231813,-25.2963711,0.00013643,2]
[420323878,1775968231826,-717.64,0.00013699,2]
[420323879,1775968231840,-166.66,0.00013699,2]
[420323880,1775968231851,-300.0,0.00013792,2]
[420323881,1775968231861,-100.09127256,0.00013792,2]
[420323882,1775968231878,-199.90872744,0.00013792,2]
[420323883,1775968231898,-126.12299548,0.00013792,2]
[420323884,1775968231911,-173.87700452,0.00013792,2]
[420323885,1775968231927,-93.50034742,0.00013792,2]
[420323886,1775968231942,-254.14013485,0.00013792,2]
[420323887,1775968231953,-369.98931999,0.00013792,2]
[420323888,1775968231976,-482.37019774,0.00013792,2]
[420323889,1775968231994,-1600.0,0.0001381,2]
[420323890,1775968232008,-166.66,0.00013836,2]
[420323891,1775968232018,-744.85035099,0.00013933,2]
[420323898,1775968232239,-1255.14964901,0.00013933,2]
[420323901,1775968232248,-160.3,0.0001397,2]
[420323903,1775968232259,-166.66,0.00013973,2]
[420323907,1775968232281,-217.04123698,0.00014041,2]
[420323909,1775968232291,-166.66,0.0001411,2]
[420323913,1775968232320,-500.0,0.0001411,2]
[420323914,1775968232332,-166.66,0.00014247,2]
[420323917,1775968232348,-1249.31232519,0.00014289,2]
[420323920,1775968232367,-1295.9148631,0.00014289,2]
[420323921,1775968232391,-257.8752,0.00014289,2]
[420323922,1775968232411,-772.03063579,0.00014289,2]
[420323923,1775968232422,-1669.08637592,0.00014289,2]
[420323924,1775968232438,-1347.29236127,0.00014289,2]
[420323925,1775968232474,-2424.07895351,0.00014289,2]
[420323926,1775968232557,-1635.36487997,0.00014289,2]
[420323927,1775968232575,-264.00221638,0.00014289,2]
[420323928,1775968232600,-1925.08868887,0.00014289,2]
[420323929,1775968232610,-40.19861471,0.00014299,2]
[420323930,1775968232634,-109.80138529,0.00014299,2]
[420323931,1775968232644,-6309.83424611,0.000143,2]
[420323932,1775968232660,-1646.34304393,0.000143,2]
[420323933,1775968232673,-2588.3404461,0.000143,2]
[420323934,1775968232685,-300.0,0.000143,2]
[420323935,1775968232701,-300.0,0.000143,2]
[420323936,1775968232723,-300.0,0.000143,2]
[420323937,1775968232736,-300.0,0.000143,2]
[420323938,1775968232754,-2500.0,0.000143,2]
[420323939,1775968232791,-2500.0,0.000143,2]
[420323940,1775968232801,-2500.0,0.000143,2]
[420323941,1775968232825,-2500.0,0.000143,2]
[420323942,1775968232834,-205.10243061,0.000143,2]
[420323943,1775968232845,-4157.55792565,0.000143,2]
[420323944,1775968232855,-396.89607824,0.00014316,2]
[420323945,1775968232874,-166.66,0.00014384,2]
[420323946,1775968232884,-251.54510775,0.00014387,2]
[420323947,1775968232893,-500.0,0.00014388,2]
[420323948,1775968232903,-227.99105379,0.00014388,2]
[420323949,1775968232916,-434.04217514,0.00014388,2]
[420323950,1775968232926,-500.0,0.00014388,2]
[420323951,1775968232935,-465.38527332,0.00014388,2]
[420323952,1775968232945,-500.0,0.00014389,2]
[420323953,1775968232961,-188908.46715892,0.00014389,2]
[420323954,1775968232973,-11860.10815223,0.00014389,2]
[420323955,1775968232985,-32121.81905414,0.00014389,2]
[420323956,1775968233004,-49792.74042106,0.00014389,2]
[420323957,1775968233015,-1632.70955247,0.00014389,2]
[420323966,1775968237936,-981.27320347,0.00014389,2]
[420323967,1775968237965,-1929.14658045,0.00014389,2]
[420323968,1775968237979,-481.60190439,0.00014389,2]
[420323969,1775968238005,-369.30091804,0.00014389,2]
[420323970,1775968238073,-1222.12293849,0.00014389,2]
[420324033,1775968242416,-1244.18482748,0.00014389,2]
[420324047,1775968243233,-443.4506406,0.00014389,2]
[420324048,1775968243247,-20279.50605604,0.00014389,2]
[420324051,1775968245753,-2769.3867123,0.00014389,2]
[420324052,1775968245823,-56214.04737992,0.00014389,2]
[420324053,1775968245836,-150.0,0.000144,2]
[420324054,1775968245854,-150.0,0.000144,2]
[420324055,1775968245863,-150.0,0.000144,2]
[420324056,1775968245876,-150.0,0.000144,2]
[420324057,1775968245888,-150.0,0.000144,2]
[420324058,1775968245905,-150.0,0.000144,2]
[420324059,1775968245921,-150.0,0.000144,2]
[420324060,1775968245936,-150.0,0.000144,2]
[420324061,1775968245952,-213.59,0.000144,2]
[420324062,1775968245961,-500.0,0.000144,2]
[420324063,1775968245970,-14436.13,0.00014465,2]
[420324064,1775968245984,-500.0,0.00014486,2]
[420324065,1775968245994,-151.0,0.00014486,2]
[420324066,1775968246011,-1101.69807098,0.00014488,5]
[420324067,1775968246020,-8728.4561842,0.00014489,2]
[420324068,1775968246029,-5427.1988063,0.00014489,2]
[420324069,1775968246038,-500.0,0.00014489,2]
[420324070,1775968246049,-500.0,0.00014489,2]
[420324071,1775968246061,-500.0,0.00014489,2]
[420324072,1775968246070,-181.281498,0.00014489,2]
[420324073,1775968246079,-191.25,0.000145,2]
[420324074,1775968246091,-3308.52,0.00014516,2]
[420324075,1775968246102,-150.0,0.0001456,2]
[420324076,1775968246111,-150.0,0.0001456,2]
[420324077,1775968246124,-150.0,0.00014578,2]
[420324078,1775968246133,-686.05428556,0.00014578,2]
[420324085,1775968396788,287.34,0.00030136,120]
[420324086,1775968776604,5036.28307035,0.000301,120]
[420324088,1775968894072,150.0,0.00030136,120]
[420324089,1775969035088,3668.0,0.00030137,120]
[420324090,1775969063761,158.44,6.964e-05,2]
[420324091,1775969365505,500.86810362,0.00030136,120]
[420324096,1775969434520,-164.14791003,0.00011745,5]
[420324097,1775969434542,-356.20891806,0.00012274,2]
[420324098,1775969434551,-144.14029191,0.00013699,2]
[420324099,1775969434585,-5.85970809,0.00013699,2]
[420324100,1775969434601,-150.0,0.00013699,2]
[420324101,1775969434625,-162.62,0.000137,2]
[420324102,1775969434642,-150.0,0.00013705,2]
[420324103,1775969434658,-150.0,0.00013705,2]
[420324104,1775969434677,-39.83253191,0.00013773,2]
[420324106,1775969434695,-260.16746809,0.00013773,2]
[420324108,1775969434725,-404.06233191,0.00013773,2]
[420324110,1775969434738,-677.72,0.00013773,2]
[420324125,1775969435335,-118.21766809,0.00013773,2]
[420324126,1775969435361,-16389.63,0.00013774,2]
[420324127,1775969435370,-150.0,0.00013973,2]
[420324128,1775969435382,-150.0,0.00013979,2]
[420324129,1775969435399,-150.0,0.00014029,2]
[420324130,1775969435409,-150.0,0.00014029,2]
[420324131,1775969435418,-11708.8815,0.000141,2]
[420324132,1775969435430,-200.0,0.0001413,2]
[420324133,1775969435450,-5678.85082149,0.00014153,2]
[420324134,1775969435459,-150.0,0.00014189,2]
[420324135,1775969435474,-37128.03350364,0.0001419,2]
[420324136,1775969435489,-213.6,0.00014199,2]
[420324137,1775969435499,-500.0,0.00014199,2]
[420324138,1775969435514,-500.0,0.00014199,2]
[420324139,1775969435527,-150.0,0.00014247,2]
[420324140,1775969435542,-150.0,0.00014253,2]
[420324141,1775969435557,-1000.0,0.00014289,2]
[420324142,1775969435566,-150.0,0.000143,2]
[420324143,1775969435578,-150.0,0.00014302,2]
[420324144,1775969435593,-150.0,0.00014302,2]
[420324145,1775969435603,-500.0,0.00014389,2]
[420324146,1775969435613,-363.77334799,0.00014389,2]
[420324147,1775969435635,-796.07,0.00014389,2]
[420324148,1775969435645,-1500.0,0.0001439,2]
[420324149,1775969435654,-506.78365876,0.00014396,2]
[420324150,1775969435665,-3272.1493499,0.00014397,2]
[420324151,1775969435681,-7066.9886873,0.00014397,2]
[420324152,1775969435691,-76711.02339142,0.00014397,2]
[420324153,1775969435711,-20109.22344405,0.00014397,2]
[420324154,1775969435744,-11144.39092413,0.00014397,2]
[420324155,1775969435754,-2382.146071,0.00014397,2]
[420324156,1775969435770,-1481.1760568,0.00014397,2]
[420324157,1775969435782,-151.0,0.00014397,2]
[420324158,1775969435791,-160.063048,0.00014397,2]
[420324159,1775969435810,-160.063048,0.00014397,2]
[420324160,1775969435823,-160.063048,0.00014397,2]
[420324161,1775969435833,-34.83384713,0.00014397,2]
[420324162,1775969438654,-125.22920087,0.00014397,2]
[420324163,1775969438664,-152.104974,0.00014397,2]
[420324165,1775969438675,-155.717465,0.00014397,2]
[420324166,1775969438686,-150.07760381,0.000144,2]
[420324167,1775969438697,-150.0,0.000144,2]
[420324168,1775969438707,-150.0,0.000144,2]
[420324169,1775969438718,-150.0,0.000144,2]
[420324170,1775969438727,-150.0,0.000144,2]
[420324171,1775969438746,-150.0,0.000144,2]
[420324172,1775969438755,-150.0,0.000144,2]
[420324173,1775969438764,-102.01707207,0.000144,2]
[420324187,1775969443439,-500.0,0.00014396,2]
[420324188,1775969443475,-500.0,0.00014396,2]
[420324189,1775969443505,-500.0,0.00014396,2]
[420324190,1775969443531,-500.0,0.00014396,2]
[420324191,1775969443540,-500.0,0.00014396,2]
[420324192,1775969443563,-500.0,0.00014396,2]
[420324193,1775969443574,-500.0,0.00014396,2]
[420324194,1775969443585,-500.0,0.00014396,2]
[420324195,1775969443603,-47.98292793,0.000144,2]
[420324196,1775969443614,-150.0,0.000144,2]
[420324197,1775969443623,-150.0,0.000144,2]
[420324198,1775969443636,-150.0,0.000144,2]
[420324199,1775969443653,-150.0,0.000144,2]
[420324200,1775969443664,-150.0,0.000144,2]
[420324201,1775969443673,-150.0,0.00014414,2]
[420324202,1775969443689,-1370.7583,0.0001443,2]
[420324203,1775969443699,-1370.75831,0.0001443,2]
[420324204,1775969443708,-751.25693979,0.0001445,2]
[420324206,1775969446061,-619.50137021,0.0001445,2]
[420324207,1775969446071,-200.0,0.00014461,2]
[420324208,1775969446083,-1869.0,0.00014489,2]
[420324209,1775969446093,-1869.0,0.00014489,2]
[420324210,1775969446103,-1869.0,0.00014489,2]
[420324211,1775969446115,-1869.0,0.00014489,2]
[420324212,1775969446125,-1869.0,0.00014489,2]
[420324213,1775969446140,-1869.0,0.00014489,2]
[420324214,1775969446155,-1869.0,0.00014489,2]
[420324215,1775969446167,-1869.0,0.00014489,2]
[420324216,1775969446181,-1869.0,0.00014489,2]
[420324217,1775969446198,-1569.266,0.00014489,2]
[420324218,1775969446211,-150.0,0.00014507,2]
[420324219,1775969446222,-150.0,0.00014514,2]
[420324220,1775969446242,-150.0,0.00014514,2]
[420324221,1775969446254,-150.0,0.00014533,2]
[420324222,1775969446284,-361.71,0.00014536,2]
[420324223,1775969446293,-150.0,0.0001456,2]
[420324224,1775969446303,-150.0,0.00014576,2]
[420324225,1775969446319,-796.07,0.00014578,2]
[420324226,1775969446332,-1370.7583,0.00014578,2]
[420324227,1775969446342,-1370.7583,0.00014578,2]
[420324228,1775969446351,-1370.75831,0.00014578,2]
[420324229,1775969446367,-217.24571444,0.00014578,2]
[420324230,1775969446378,-150.0,0.00014613,2]
[420324231,1775969446388,-150.0,0.00014629,2]
[420324232,1775969446397,-150.0,0.00014629,2]
[420324233,1775969446411,-150.0,0.00014629,2]
[420324234,1775969446421,-250.0,0.00014647,2]
[420324235,1775969446432,-135.79742711,0.00014667,2]
[420324236,1775969446506,-14.20257289,0.00014667,2]
[420324237,1775969446517,-150.0,0.0001472,2]
[420324238,1775969446535,-150.0,0.0001472,2]
[420324239,1775969446545,-150.0,0.0001472,2]
[420324240,1775969446554,-150.0,0.00014743,2]
[420324242,1775969446579,-150.0,0.00014743,2]
[420324243,1775969446588,-150.0,0.000148,2]
[420324245,1775969446620,-150.0,0.00014827,2]
[420324247,1775969446630,-150.0,0.00014857,2]
[420324249,1775969446640,-150.0,0.00014857,2]
[420324251,1775969446668,-150.0,0.00014857,2]
[420324253,1775969446678,-150.0,0.0001488,2]
[420324254,1775969446687,-150.0,0.00014887,2]
[420324256,1775969446707,-150.0,0.00014887,2]
[420324258,1775969446740,-208.67891439,0.00014887,2]
[420324260,1775969446751,-150.0,0.00014887,2]
[420324261,1775969446774,-284.17989899,0.00014901,2]
[420324262,1775969446788,-150.0,0.00014933,2]
[420324263,1775969446806,-150.0,0.00014933,2]
[420324265,1775969446834,-150.0,0.00014971,2]
[420324266,1775969446844,-150.0,0.00014971,2]
[420324267,1775969446873,-166.7271,0.00015,2]
[420324268,1775969446883,-300.0,0.00015,2]
[420324269,1775969446899,-150.0,0.0001504,2]
[420324270,1775969446925,-150.0,0.0001504,2]
[420324271,1775969446936,-150.0,0.0001504,2]
[420324272,1775969446953,-150.0,0.00015067,2]
[420324273,1775969446964,-151.0,0.00015068,2]
[420324274,1775969446975,-151.0,0.00015068,2]
[420324275,1775969446985,-151.0,0.00015068,2]
[420324276,1775969447014,-151.0,0.00015068,2]
[420324277,1775969447026,-150.0,0.00015086,2]
[420324278,1775969447066,-150.0,0.00015086,2]
[420324279,1775969447076,-150.0,0.00015086,2]
[420324280,1775969447096,-420.0,0.00015092,2]
[420324281,1775969447111,-500.0,0.00015096,2]
[420324282,1775969447135,-1037.0,0.00015104,2]
[420324283,1775969447151,-1037.0,0.00015109,2]
[420324284,1775969447163,-298.11633306,0.00015121,2]
[420324285,1775969447184,-150.0,0.00015147,2]
[420324286,1775969447201,-1390.0,0.0001515,2]
[420324287,1775969447216,-1037.0,0.00015158,2]
[420324288,1775969447226,-1037.0,0.00015179,2]
[420324289,1775969447235,-150.0,0.000152,2]
[420324290,1775969447245,-150.0,0.000152,2]
[420324291,1775969447262,-150.0,0.000152,2]
[420324292,1775969447286,-150.0,0.000152,2]
[420324293,1775969447297,-150.0,0.000152,2]
[420324294,1775969447306,-1037.0,0.00015224,2]
[420324295,1775969447326,-150.0,0.00015253,2]
[420324296,1775969447339,-165.84,0.00015272,2]
[420324297,1775969447373,-700.0,0.00015289,2]
[420324298,1775969447386,-1517.64,0.000153,2]
[420324299,1775969447398,-1037.0,0.00015306,2]
[420324300,1775969447417,-903.3,0.00015307,2]
[420324301,1775969447426,-210.0,0.0001531,2]
[420324302,1775969447439,-150.0,0.00015314,2]
[420324303,1775969447454,-150.0,0.00015314,2]
[420324304,1775969447463,-150.0,0.00015314,2]
[420324305,1775969447476,-150.0,0.00015333,2]
[420324306,1775969447493,-150.0,0.0001536,2]
[420324307,1775969447503,-150.0,0.0001536,2]
[420324308,1775969447512,-150.0,0.0001536,2]
[420324309,1775969447543,-1037.0,0.0001538,2]
[420324310,1775969447552,-1037.0,0.00015381,2]
[420324311,1775969447576,-150.0,0.00015429,2]
[420324312,1775969447586,-150.0,0.00015429,2]
[420324313,1775969447596,-150.0,0.00015467,2]
[420324314,1775969447612,-150.0,0.00015467,2]
[420324315,1775969447636,-1232.59617899,0.000155,2]
[420324316,1775969447647,-4000.0,0.00015507,2]
[420324317,1775969447668,-261.581757,0.00015507,2]
[420324318,1775969447677,-261.581757,0.00015507,2]
[420324319,1775969447687,-261.581757,0.00015507,2]
[420324320,1775969447702,-261.581757,0.00015507,2]
[420324321,1775969447728,-155.150841,0.00015507,2]
[420324322,1775969447737,-151.0,0.00015507,2]
[420324323,1775969447747,-151.0,0.00015507,2]
[420324324,1775969447762,-151.493888,0.00015507,2]
[420324325,1775969447788,-151.0,0.00015507,2]
[420324326,1775969447798,-150.0,0.0001552,2]
[420324327,1775969447807,-151.0,0.0001552,2]
[420324328,1775969447824,-151.0,0.0001552,2]
[420324329,1775969447835,-151.0,0.0001552,2]
[420324330,1775969447845,-151.0,0.0001552,2]
[420324331,1775969447853,-160.063048,0.0001552,2]
[420324332,1775969447874,-160.063048,0.0001552,2]
[420324333,1775969447885,-160.063048,0.0001552,2]
[420324334,1775969447896,-160.063048,0.0001552,2]
[420324335,1775969447906,-1600.0,0.00015536,2]
[420324336,1775969447918,-150.0,0.00015543,2]
[420324337,1775969447929,-150.0,0.00015543,2]
[420324338,1775969447941,-150.0,0.00015543,2]
[420324339,1775969447958,-151.0,0.00015543,2]
[420324340,1775969447975,-150.0,0.00015573,2]
[420324341,1775969447984,-150.0,0.000156,2]
[420324342,1775969447994,-1037.0,0.00015623,2]
[420324343,1775969448035,-150.0,0.00015657,2]
[420324344,1775969448046,-150.0,0.00015657,2]
[420324345,1775969448073,-2000.0,0.00015675,2]
[420324346,1775969448087,-150.0,0.0001568,2]
[420324347,1775969448096,-150.0,0.0001568,2]
[420324348,1775969448109,-150.0,0.0001568,2]
[420324349,1775969448120,-574.0,0.00015684,2]
[420324350,1775969448137,-200.0,0.000157,5]
[420324351,1775969448146,-150.0,0.00015733,2]
[420324352,1775969448162,-293.0,0.0001576,2]
[420324353,1775969448180,-151.0,0.0001576,2]
[420324354,1775969448191,-151.0,0.0001576,2]
[420324355,1775969448203,-151.0,0.0001576,2]
[420324356,1775969448221,-296.649652,0.0001576,2]
[420324357,1775969448233,-150.0,0.00015771,2]
[420324358,1775969448246,-150.0,0.00015771,2]
[420324359,1775969448262,-150.0,0.00015771,2]
[420324360,1775969448273,-150.0,0.00015787,2]
[420324361,1775969448289,-1037.0,0.00015799,2]
[420324362,1775969448298,-500.0,0.000158,5]
[420324363,1775969448314,-1037.0,0.00015806,2]
[420324364,1775969448327,-150.0,0.0001584,2]
[420324365,1775969448341,-150.0,0.00015867,2]
[420324366,1775969448371,-250.0,0.00015879,2]
[420324367,1775969448380,-150.0,0.00015886,2]
[420324368,1775969448392,-150.0,0.00015886,2]
[420324369,1775969448414,-151.0,0.0001589,2]
[420324370,1775969448423,-2000.0,0.0001589,2]
[420324371,1775969448435,-151.0,0.00015892,2]
[420324372,1775969448463,-150.0,0.00015893,2]
[420324373,1775969448476,-4000.0,0.00015895,2]
[420324374,1775969448486,-485.47152628,0.00015899,2]
[420324375,1775969448511,-224.29010573,0.000159,2]
[420324376,1775969448530,-5000.0,0.000159,2]
[420324377,1775969448557,-800.0,0.000159,5]
[420324378,1775969448582,-3741.80213304,0.000159,2]
[420324379,1775969448591,-1101.69807098,0.00015905,5]
[420324380,1775969448609,-1037.0,0.00015907,2]
[420324381,1775969448622,-1037.0,0.0001591,2]
[420324382,1775969448631,-234.48935192,0.0001599,2]
[420324383,1775969448640,-151.0,0.00015997,2]
[420324384,1775969448671,-300.0,0.00015999,2]
[420324385,1775969448680,-155.0,0.00015999,2]
[420324386,1775969448689,-150.0,0.00015999,2]
[420324387,1775969448710,-796.07,0.00015999,2]
[420324388,1775969448719,-796.07,0.00015999,2]
[420324389,1775969448737,-796.07,0.00015999,2]
[420324390,1775969448746,-796.07,0.00015999,2]
[420324391,1775969448755,-796.07,0.00015999,2]
[420324392,1775969448771,-796.07,0.00015999,2]
[420324393,1775969448780,-796.07,0.00015999,2]
[420324394,1775969448794,-796.07,0.00015999,2]
[420324395,1775969448803,-450.75456314,0.00015999,2]
[420324396,1775969448812,-545.28690748,0.00015999,2]
[420324397,1775969448822,-1063.0,0.00016,5]
[420324398,1775969448837,-1389.0,0.00016,5]
[420324399,1775969448846,-1374.0,0.00016,5]
[420324400,1775969448855,-152.17906836,0.00016,2]
[420324401,1775969448866,-151.69496974,0.00016,2]
[420324402,1775969448884,-150.0,0.00016,2]
[420324403,1775969448892,-150.91794253,0.00016,2]
[420324404,1775969448901,-150.0,0.00016,2]
[420324405,1775969448913,-207.56658134,0.00016,2]
[420324406,1775969448928,-150.0,0.00016,2]
[420324407,1775969448937,-150.0,0.00016,2]
[420324408,1775969448947,-152.13414095,0.00016,2]
[420324409,1775969448960,-64381.19471495,0.00016,2]
[420324410,1775969499786,444.59039105,0.0003013,120]
[420324411,1775969554239,396.125661,0.00022974,120]
[420324412,1775969598862,500.0,0.00029452,120]
[420324426,1775970197318,500.0,0.00030137,120]
[420324432,1775970632875,-677.66,0.000109,2]
[420324433,1775970632888,-172.04,0.000109,2]
[420324434,1775970632900,-250.0,0.00013,2]
[420324435,1775970632913,-300.0,0.00013899,2]
[420324436,1775970632922,-1200.0,0.00013899,2]
[420324437,1775970632935,-1166.90401429,0.000139,2]
[420324449,1775970633221,-1195.0,0.000139,2]
[420324451,1775970633233,-280.63250004,0.000139,2]
[420324465,1775970638374,-2244.69248567,0.000139,2]
[420324466,1775970638383,-1356.35407576,0.000139,2]
[420324467,1775970638428,-1892.99600272,0.000139,2]
[420324468,1775970638446,-3575.0,0.000139,2]
[420324469,1775970638481,-939.58065,0.000139,2]
[420324485,1775970641787,-458.62774156,0.00013899,2]
[420324517,1775970646340,-41.37225844,0.00013899,2]
[420324518,1775970646361,-500.0,0.00013899,2]
[420324519,1775970646373,-500.0,0.00013899,2]
[420324520,1775970646386,-500.0,0.00013899,2]
[420324521,1775970646399,-500.0,0.00013899,2]
[420324522,1775970646412,-500.0,0.00013899,2]
[420324523,1775970646423,-500.0,0.00013899,2]
[420324524,1775970646433,-498.07292401,0.00013899,2]